bitfinex/quotes_ETHUSD_20250415
["timestamp","ask_amount","ask_price","bid_price","bid_amount"]
[1744760772922,6.508,1590.4,1590.2,12.57668929]
[1744760773223,6.508,1590.4,1590.3,6.28812173]
[1744760773820,49.051,1590.5,1590.3,6.28812173]
[1744760774029,6.508,1590.4,1590.3,6.28812173]
[1744760774197,49.051,1590.5,1590.3,6.28812173]
[1744760774520,6.508,1590.4,1590.1,6.28890769]
[1744760774722,6.28774978,1590.4,1590.1,12.57781538]
[1744760774939,12.79574978,1590.4,1590.1,12.57781538]
[1744760775102,0.8237,1591.0,1590.2,0.7645]
[1744760775304,0.8237,1591.2,1590.7,0.7645]
[1744760775504,5.03340165,1591.3,1590.7,0.7645]
[1744760775699,6.28473252,1591.2,1590.9,6.28570758]
[1744760775894,6.28471635,1591.2,1590.9,6.28570758]
[1744760776313,6.28471635,1591.2,1590.9,6.28562644]
[1744760776510,11.31768104,1591.3,1591.0,6.28529779]
[1744760776725,6.508,1591.2,1591.1,6.2848922]
[1744760777323,5.03340165,1591.3,1591.1,6.2848922]
[1744760777516,6.508,1591.2,1591.1,6.2848922]
[1744760777822,6.507,1591.2,1591.0,6.28520439]
[1744760778338,6.507,1591.2,1591.1,6.28496009]
[1744760778535,6.507,1591.2,1591.0,6.28520439]
[1744760779955,6.507,1591.2,1590.9,6.28568232]
[1744760780105,12.79179233,1591.2,1590.9,12.5713217]
[1744760780414,0.19911108,1591.1,1590.9,6.28563938]
[1744760780618,6.48410621,1591.1,1590.8,6.28602125]
[1744760780815,6.28499513,1591.1,1590.8,12.57205251]
[1744760781128,0.19886363,1591.0,1590.9,6.2857502]
[1744760781317,19.07653256,1591.2,1590.9,6.2857502]
[1744760781513,0.19886363,1591.0,1590.8,6.28602125]
[1744760781720,6.28586564,1590.9,1590.6,6.28684672]
[1744760781907,6.28710538,1590.6,1590.3,7.09591991]
[1744760782104,6.28710538,1590.6,1590.3,6.99766662]
[1744760782309,0.19722733,1590.5,1590.3,6.99766662]
[1744760782535,0.19722733,1590.5,1590.3,13.2856763]
[1744760782734,0.19722733,1590.5,1590.3,6.99759288]
[1744760783034,0.19722733,1590.5,1590.3,6.99758901]
[1744760783233,0.19722733,1590.5,1590.3,13.28558186]
[1744760783737,0.19722733,1590.5,1590.4,6.28772635]
[1744760784103,12.57335619,1590.7,1590.4,6.28772635]
[1744760784304,0.19512783,1590.5,1590.4,6.28772635]
[1744760784527,12.57335619,1590.7,1590.4,6.28772635]
[1744760784834,0.19512783,1590.5,1590.3,13.28558037]
[1744760785000,12.57341865,1590.7,1590.3,13.28558037]
[1744760785208,0.19488019,1590.4,1590.3,12.57598838]
[1744760785402,12.57341865,1590.7,1590.3,12.57598838]
[1744760785918,0.19537544,1590.6,1590.3,12.57598838]
[1744760786240,6.48233206,1590.6,1590.3,12.57598838]
[1744760786415,0.19512783,1590.5,1590.3,12.57598838]
[1744760786837,12.57357236,1590.7,1590.3,13.83358722]
[1744760787036,0.19537544,1590.6,1590.4,6.28772404]
[1744760787404,0.19637508,1590.5,1590.4,6.28759942]
[1744760787727,6.28664146,1590.7,1590.4,6.28759942]
[1744760787924,0.19637508,1590.5,1590.4,6.28759942]
[1744760788558,6.28694476,1590.6,1590.3,6.28795338]
[1744760788756,0.19642216,1590.5,1590.4,6.28771014]
[1744760789141,12.57344781,1590.7,1590.4,6.28771014]
[1744760789344,0.19642216,1590.5,1590.4,6.28771014]
[1744760789515,12.57331853,1590.7,1590.3,6.28800619]
[1744760789720,0.19642216,1590.5,1590.3,12.57601238]
[1744760789934,12.57331853,1590.7,1590.4,6.28772287]
[1744760790270,6.28696365,1590.6,1590.3,12.57601238]
[1744760791061,6.28696365,1590.6,1590.3,12.57602105]
[1744760791265,6.28696365,1590.6,1590.3,12.57602272]
[1744760792463,6.471,1590.5,1590.3,12.57602272]
[1744760792620,9.371,1590.5,1590.4,6.28772635]
[1744760794596,9.371,1590.5,1590.4,8.3376996]
[1744760794745,9.371,1590.5,1590.4,8.40057017]
[1744760795257,9.54989464,1590.5,1590.4,8.40057017]
[1744760795679,9.54989464,1590.5,1590.4,8.3376996]
[1744760795989,9.54989464,1590.5,1590.4,8.40057017]
[1744760795990,3.07889464,1590.5,1590.4,8.40057017]
[1744760796172,3.07889464,1590.5,1590.4,8.3376996]
[1744760796874,3.07889464,1590.5,1590.4,8.40056534]
[1744760797450,3.07889464,1590.5,1590.4,8.3376996]
[1744760797651,0.17889464,1590.5,1590.4,6.28772635]
[1744760797850,6.28650023,1590.8,1590.4,6.28772635]
[1744760798062,0.18273684,1590.7,1590.5,6.28728926]
[1744760798403,6.471,1590.6,1590.5,6.28728926]
[1744760798700,13.7117423,1590.6,1590.3,6.28789155]
[1744760798902,7.42478927,1590.6,1590.4,6.28759529]
[1744760799105,7.42478927,1590.6,1590.3,6.28803972]
[1744760799309,13.71189013,1590.6,1590.3,6.2880048]
[1744760799478,7.42478927,1590.6,1590.4,6.28772283]
[1744760799678,13.71173035,1590.6,1590.3,12.5760096]
[1744760800195,6.65348927,1590.6,1590.5,6.28733102]
[1744760801608,6.65348927,1590.6,1590.4,12.575448]
[1744760802107,6.65348927,1590.6,1590.5,6.28733102]
[1744760803011,9.55348927,1590.6,1590.5,6.28733102]
[1744760804926,9.55348927,1590.6,1590.5,7.10113102]
[1744760805093,9.55348927,1590.6,1590.5,9.06876906]
[1744760805824,9.55348927,1590.6,1590.5,7.10113102]
[1744760806810,3.08248927,1590.6,1590.5,7.10113102]
[1744760808982,3.08248927,1590.6,1590.4,6.28752466]
[1744760809182,3.08248927,1590.6,1590.3,13.40255854]
[1744760809594,3.08248927,1590.6,1590.4,6.287717]
[1744760810417,3.08248927,1590.6,1590.4,12.57533938]
[1744760810615,3.08248927,1590.6,1590.4,6.28762238]
[1744760810818,3.08248927,1590.6,1590.4,6.28760169]
[1744760811115,3.08248927,1590.6,1590.4,7.62781538]
[1744760811304,3.08248927,1590.6,1590.5,6.28733102]
[1744760813725,3.08248927,1590.6,1590.4,12.57514213]
[1744760813890,3.08248927,1590.6,1590.4,6.28753091]
[1744760814090,3.08248927,1590.6,1590.4,12.57515544]
[1744760816819,3.08248927,1590.6,1590.4,6.28753091]
[1744760816999,3.08248927,1590.6,1590.5,6.28733102]
[1744760817609,3.08248927,1590.6,1590.5,6.35019894]
[1744760817809,3.08248927,1590.6,1590.5,9.88574709]
[1744760818209,0.18248927,1590.6,1590.5,9.82287917]
[1744760818410,18.82332044,1591.0,1590.7,6.28634524]
[1744760818640,18.82314824,1591.0,1590.7,6.34920419]
[1744760818806,0.17402208,1590.9,1590.7,12.63563652]
[1744760819006,0.17402208,1590.9,1590.7,6.28634524]
[1744760819410,12.74576633,1590.9,1590.6,6.28682002]
[1744760819603,12.74576633,1590.9,1590.5,13.39740996]
[1744760819604,6.28614973,1590.8,1590.5,13.39740996]
[1744760819838,7.27647668,1590.8,1590.5,6.28719963]
[1744760820016,7.27647668,1590.8,1590.5,12.57439926]
[1744760820434,7.27647668,1590.8,1590.5,12.57442142]
[1744760821442,7.27647668,1590.8,1590.6,6.28692206]
[1744760822447,0.99027458,1590.8,1590.6,6.28692206]
[1744760822745,0.99027458,1590.8,1590.6,12.57375926]
[1744760822945,7.09027458,1590.8,1590.6,12.57375926]
[1744760823607,2.9,1590.7,1590.6,6.28681699]
[1744760823844,3.07359263,1590.7,1590.6,6.28681699]
[1744760824027,3.07359263,1590.7,1590.6,7.54421149]
[1744760824349,3.07359263,1590.7,1590.6,6.28681699]
[1744760827851,0.17359263,1590.7,1590.6,7.09411699]
[1744760828147,4.20970165,1591.2,1591.1,6.28496009]
[1744760828350,4.20970165,1591.2,1591.1,7.06016009]
[1744760828734,0.2496,1591.3,1591.1,16.61259994]
[1744760829045,0.2496,1591.3,1591.2,7.94582509]
[1744760829624,0.2496,1591.3,1591.2,8.70772509]
[1744760830849,0.2496,1591.3,1591.2,8.77056041]
[1744760831250,0.2496,1591.3,1591.2,8.70772509]
[1744760831450,0.2496,1591.3,1591.1,6.28477042]
[1744760831754,0.2496,1591.3,1591.2,6.2845651]
[1744760832568,0.2496,1591.3,1591.1,12.5695822]
[1744760832780,0.2496,1591.3,1591.0,6.28527674]
[1744760832943,7.0461651,1591.2,1590.6,0.8065]
[1744760833163,6.28496009,1591.1,1590.7,6.28639377]
[1744760833450,6.8616,1591.2,1590.6,12.63663703]
[1744760833451,7.06245101,1590.9,1590.6,12.63663703]
[1744760833662,0.7767,1590.9,1590.6,13.837441]
[1744760833877,7.06256704,1590.9,1590.6,7.55055235]
[1744760834092,7.06256704,1590.9,1590.6,6.28688865]
[1744760834264,12.53547905,1591.0,1590.7,6.28639959]
[1744760834265,6.25,1591.0,1590.7,6.28639959]
[1744760834679,12.53570201,1591.0,1590.6,6.28684107]
[1744760834979,6.28582267,1590.9,1590.5,6.28723187]
[1744760835299,6.28582267,1590.9,1590.5,12.63728578]
[1744760835507,6.28582267,1590.9,1590.5,12.57441931]
[1744760836002,0.14446232,1590.8,1590.5,12.57441931]
[1744760836145,0.14446232,1590.8,1590.7,6.28654051]
[1744760836346,6.25,1591.0,1590.6,6.28677072]
[1744760836546,7.24955823,1590.9,1590.5,6.28719024]
[1744760836864,6.2861884,1590.8,1590.5,6.28719024]
[1744760837082,6.2861884,1590.8,1590.5,12.57440579]
[1744760837247,0.14421472,1590.7,1590.5,12.57440579]
[1744760837579,0.14421472,1590.7,1590.6,6.28693574]
[1744760838199,0.14421472,1590.7,1590.6,6.34980203]
[1744760839801,0.14421472,1590.7,1590.5,6.28719024]
[1744760841121,6.28716787,1590.6,1590.2,13.33558748]
[1744760841301,19.63113542,1590.6,1590.3,6.28810473]
[1744760841475,0.14371942,1590.5,1590.3,6.28810473]
[1744760841870,0.14371942,1590.5,1590.3,12.57620946]
[1744760842209,0.14371942,1590.5,1590.4,6.28772635]
[1744760842515,0.14371942,1590.5,1590.4,9.86789172]
[1744760842807,6.1,1590.7,1590.5,6.28727888]
[1744760843374,6.1,1590.7,1590.5,6.28722684]
[1744760843815,6.1,1590.7,1590.6,6.28693574]
[1744760844012,6.28589079,1590.9,1590.6,12.57387148]
[1744760844308,6.28589079,1590.9,1590.6,12.57376028]
[1744760844474,12.3854657,1591.0,1590.6,6.28682454]
[1744760844838,6.28587653,1590.9,1590.6,6.28682454]
[1744760844974,9.18587653,1590.9,1590.6,6.28682454]
[1744760845515,15.47194476,1590.9,1590.6,6.28682454]
[1744760845699,12.57351482,1590.7,1590.3,12.57610536]
[1744760845901,6.28700079,1590.6,1590.3,14.18757047]
[1744760846396,6.112,1590.7,1590.4,0.06287011]
[1744760846605,6.112,1590.7,1590.5,6.2871521]
[1744760847171,6.112,1590.7,1590.6,7.07123574]
[1744760847873,2.9,1590.9,1590.7,6.28653347]
[1744760848091,2.9,1590.9,1590.7,6.28641984]
[1744760848295,2.9,1590.9,1590.6,7.13400631]
[1744760848530,2.9,1590.9,1590.7,6.2864336]
[1744760848995,2.9,1590.9,1590.8,6.28614533]
[1744760850220,2.9,1590.9,1590.8,6.03654533]
[1744760850421,2.9,1590.9,1590.7,6.28642837]
[1744760850592,9.18589376,1590.9,1590.6,13.35808732]
[1744760850797,9.18575782,1590.9,1590.6,13.35808732]
[1744760851010,2.9,1590.9,1590.7,6.28650598]
[1744760851424,3.6588,1590.9,1590.7,6.28650598]
[1744760851725,3.6588,1590.9,1590.7,6.28642945]
[1744760851931,2.9,1590.9,1590.7,6.28642149]
[1744760852426,2.9,1590.9,1590.7,6.2864]
[1744760853100,2.9,1590.9,1590.7,12.57281803]
[1744760853303,9.18604377,1590.9,1590.6,6.28683373]
[1744760853508,15.47218079,1590.9,1590.6,6.28683373]
[1744760853704,15.47194476,1590.9,1590.6,6.28682124]
[1744760853908,9.18590099,1590.9,1590.6,12.57364248]
[1744760854297,2.9,1590.9,1590.7,6.28645212]
[1744760854927,9.18589299,1590.9,1590.6,6.28682124]
[1744760855304,15.47199633,1590.9,1590.6,6.28681693]
[1744760855505,0.14494871,1590.8,1590.4,3.52389076]
[1744760855711,0.14494871,1590.8,1590.7,6.28654051]
[1744760855929,2.9,1590.9,1590.7,6.28654051]
[1744760856332,0.14547446,1590.8,1590.7,6.28654051]
[1744760856634,9.18584088,1590.9,1590.6,6.2868206]
[1744760856840,0.14547446,1590.8,1590.6,6.2868206]
[1744760857040,9.18584088,1590.9,1590.6,12.57364408]
[1744760857340,2.9,1590.9,1590.7,6.28648718]
[1744760857840,9.18585723,1590.9,1590.6,12.57364408]
[1744760858041,15.47175226,1590.9,1590.6,6.2868206]
[1744760858237,15.47175226,1590.9,1590.5,6.2872298]
[1744760858238,13.33441905,1590.8,1590.5,6.2872298]
[1744760858708,6.28703385,1590.6,1590.3,12.57607575]
[1744760858910,6.28703385,1590.6,1590.4,6.28772577]
[1744760859934,12.39865141,1590.7,1590.4,6.2876041]
[1744760860341,6.112,1590.7,1590.5,6.28712899]
[1744760860931,6.112,1590.7,1590.5,12.57434523]
[1744760861847,6.112,1590.7,1590.6,6.28693574]
[1744760862346,6.112,1590.7,1590.5,6.28712899]
[1744760862646,6.112,1590.7,1590.5,12.57435968]
[1744760863149,6.112,1590.7,1590.5,6.28712899]
[1744760864456,6.112,1590.7,1590.6,6.28693574]
[1744760864646,6.112,1590.7,1590.5,12.57429376]
[1744760864845,6.112,1590.7,1590.4,6.28761224]
[1744760865154,6.112,1590.7,1590.5,12.5745404]
[1744760865454,6.112,1590.7,1590.5,6.28718466]
[1744760866525,6.112,1590.7,1590.5,12.57440561]
[1744760866826,6.112,1590.7,1590.5,6.28718466]
[1744760867251,12.3985694,1590.7,1590.4,12.57521808]
[1744760867626,6.112,1590.7,1590.5,6.28718507]
[1744760867823,6.112,1590.7,1590.5,12.57433209]
[1744760868457,6.112,1590.7,1590.5,6.28714702]
[1744760869756,12.39859882,1590.7,1590.4,6.28766649]
[1744760870059,12.39859882,1590.7,1590.4,12.57527696]
[1744760870367,12.57329827,1590.7,1590.4,6.28761047]
[1744760870533,6.2869521,1590.6,1590.3,12.57599694]
[1744760870733,6.2869521,1590.6,1590.3,7.89768289]
[1744760870928,6.42992268,1590.6,1590.3,6.28798412]
[1744760871148,0.14297058,1590.6,1590.3,6.28798412]
[1744760871346,6.28695529,1590.6,1590.3,6.35085774]
[1744760871662,0.14239429,1590.5,1590.2,13.38390229]
[1744760871829,7.05409429,1590.5,1590.2,13.38390229]
[1744760872031,7.05409429,1590.5,1590.3,6.28810877]
[1744760872242,6.24239429,1590.5,1590.4,6.28772635]
[1744760872868,6.24239429,1590.5,1590.3,6.2879725]
[1744760873235,6.24239429,1590.5,1590.3,12.57596998]
[1744760873562,6.24239429,1590.5,1590.3,6.2879725]
[1744760873769,6.24239429,1590.5,1590.3,12.57597318]
[1744760874468,6.24239429,1590.5,1590.4,6.28772635]
[1744760875764,0.14239429,1590.5,1590.4,6.28772635]
[1744760875968,19.45914653,1590.7,1590.4,6.28772635]
[1744760876166,0.14292445,1590.6,1590.4,6.28772635]
[1744760876370,19.45932648,1590.7,1590.4,6.28772635]
[1744760876538,0.14292445,1590.6,1590.4,6.28761592]
[1744760876739,19.45914574,1590.7,1590.4,6.28761592]
[1744760877165,0.14292445,1590.6,1590.4,6.28761592]
[1744760877366,6.28696831,1590.6,1590.3,6.2880108]
[1744760877538,0.14267677,1590.5,1590.3,6.2880108]
[1744760877935,0.14267677,1590.5,1590.3,12.57603627]
[1744760878270,0.14267677,1590.5,1590.3,6.2880108]
[1744760878565,0.14267677,1590.5,1590.3,12.57601297]
[1744760878872,0.14267677,1590.5,1590.3,12.57600434]
[1744760879269,0.14267677,1590.5,1590.4,6.28772635]
[1744760879470,6.28694326,1590.6,1590.3,12.57600434]
[1744760879670,0.14267677,1590.5,1590.3,12.57600434]
[1744760880174,0.14267677,1590.5,1590.4,6.28772635]
[1744760880349,6.28697224,1590.6,1590.3,12.57597608]
[1744760880543,0.14267677,1590.5,1590.3,12.57597172]
[1744760880763,0.14267677,1590.5,1590.4,6.28772635]
[1744760880974,13.17251081,1590.7,1590.4,6.28772635]
[1744760881188,13.17251081,1590.7,1590.4,12.57522802]
[1744760881340,0.14273613,1590.6,1590.4,6.28761381]
[1744760881540,13.17245861,1590.7,1590.4,6.28761381]
[1744760881838,0.14214463,1590.6,1590.4,12.57522455]
[1744760882062,6.1,1590.7,1590.5,12.57466204]
[1744760882384,12.041,1590.7,1590.6,6.28693574]
[1744760882548,5.941,1590.7,1590.6,6.28693574]
[1744760882966,5.941,1590.7,1590.5,6.28722584]
[1744760883154,12.22765887,1590.7,1590.4,7.05970447]
[1744760883671,18.51446383,1590.7,1590.4,6.28760447]
[1744760883838,6.28756853,1590.5,1590.2,7.06049056]
[1744760884037,18.67506011,1590.5,1590.2,7.06049056]
[1744760884245,12.38749158,1590.5,1590.2,7.06049056]
[1744760884473,12.38749158,1590.5,1590.2,13.34889729]
[1744760884672,18.67495274,1590.5,1590.2,7.06049056]
[1744760884887,6.28880866,1590.2,1589.8,7.06208594]
[1744760885045,7.09971413,1590.1,1589.8,7.06208594]
[1744760885371,0.13874085,1590.0,1589.8,6.29008428]
[1744760886685,0.13874085,1590.0,1589.9,6.28970375]
[1744760890678,5.941,1590.2,1590.0,6.28928212]
[1744760891078,6.28898392,1590.1,1589.7,7.06226117]
[1744760891257,6.28932612,1590.0,1589.7,13.35265728]
[1744760891448,6.28932612,1590.0,1589.6,12.5817319]
[1744760891449,6.28970724,1589.9,1589.6,12.5817319]
[1744760892174,7.10132612,1590.0,1589.7,12.58079354]
[1744760892350,7.10132612,1590.0,1589.7,12.58075219]
[1744760893405,7.10132612,1590.0,1589.7,6.29037438]
[1744760893574,13.39084235,1590.0,1589.7,6.29037438]
[1744760893773,7.10132612,1590.0,1589.7,6.29037438]
[1744760893973,13.39077645,1590.0,1589.7,6.29037438]
[1744760894173,13.39092379,1590.0,1589.7,6.29037438]
[1744760894374,7.10132612,1590.0,1589.7,6.29037438]
[1744760894803,6.29020942,1589.8,1589.3,0.8137]
[1744760894964,6.29020942,1589.8,1589.4,6.29156384]
[1744760895299,18.52263973,1589.8,1589.5,6.29124258]
[1744760896506,7.10451472,1589.7,1589.4,6.29156384]
[1744760896821,0.814,1589.7,1589.5,6.29127448]
[1744760896962,7.10454692,1589.7,1589.4,6.29156025]
[1744760897164,0.814,1589.7,1589.2,0.00548614]
[1744760897364,6.29207827,1589.3,1589.2,0.00548614]
[1744760899503,12.39207827,1589.3,1589.2,0.00548614]
[1744760899799,13.18877827,1589.3,1589.2,0.00548614]
[1744760899967,14.2029959,1589.3,1589.2,0.00548614]
[1744760900164,14.32735492,1589.3,1589.2,0.00548614]
[1744760902796,17.32735492,1589.3,1589.2,0.00548614]
[1744760903597,17.2029959,1589.3,1589.2,1e-08]
[1744760904418,17.49704208,1589.3,1589.2,1e-08]
[1744760906017,17.2029959,1589.3,1589.2,1e-08]
[1744760906190,22.5409959,1589.3,1589.2,1e-08]
[1744760906616,23.0909959,1589.3,1589.2,1e-08]
[1744760908127,22.8051669,1589.3,1589.2,1e-08]
[1744760912125,22.2561669,1589.3,1589.2,1e-08]
[1744760914325,6.2929701,1589.1,1588.8,12.58789722]
[1744760914528,6.2929701,1589.1,1588.8,13.91728202]
[1744760914929,6.2929701,1589.1,1588.8,7.62332643]
[1744760915329,6.2929701,1589.1,1588.8,13.9172596]
[1744760915525,6.2929701,1589.1,1588.9,6.29366131]
[1744760915822,6.2925928,1589.2,1588.9,6.29366131]
[1744760916025,6.1,1589.3,1589.0,6.29306432]
[1744760916200,5.89,1589.3,1589.2,7.0993742]
[1744760916404,6.1,1589.5,1589.4,6.29168239]
[1744760916616,6.1,1589.5,1589.4,7.07028239]
[1744760917529,6.21883877,1589.5,1589.4,7.07028239]
[1744760917728,6.21883877,1589.5,1589.4,9.03567231]
[1744760918297,6.21883877,1589.5,1589.4,7.07028239]
[1744760919736,0.11883877,1589.5,1589.4,7.07028239]
[1744760929056,0.11883877,1589.5,1589.4,0.7786]
[1744760929232,6.41012533,1589.5,1589.2,6.29235924]
[1744760929627,12.70156027,1589.5,1589.2,6.29235924]
[1744760929951,6.29170728,1589.4,1589.2,6.29235924]
[1744760930151,6.29170728,1589.4,1589.1,13.40407579]
[1744760930348,0.12412872,1589.3,1589.1,13.40407579]
[1744760930552,0.12412872,1589.3,1589.1,13.40411051]
[1744760930853,0.12412872,1589.3,1589.1,13.4040997]
[1744760931250,0.12412872,1589.3,1589.1,0.8186]
[1744760931549,6.2934014,1589.0,1588.7,0.7531]
[1744760931752,6.29373621,1588.9,1588.7,0.7531]
[1744760931957,6.41546149,1588.9,1588.7,0.7531]
[1744760932126,6.41550831,1588.9,1588.5,7.04821606]
[1744760932321,12.18218183,1588.8,1588.5,6.29502361]
[1744760932547,0.12116297,1588.7,1588.5,6.29502361]
[1744760933456,6.41567994,1588.7,1588.4,6.29559506]
[1744760933621,6.41567994,1588.7,1588.4,6.29548589]
[1744760933824,6.41567994,1588.7,1588.4,12.59099337]
[1744760934559,6.41567994,1588.7,1588.4,12.59099548]
[1744760935229,0.12116297,1588.7,1588.5,6.29522822]
[1744760935959,0.12116297,1588.7,1588.4,12.59100917]
[1744760936253,6.41573606,1588.7,1588.4,12.59100917]
[1744760936453,0.12116297,1588.7,1588.5,6.29523696]
[1744760937553,6.22116297,1588.7,1588.5,6.29523696]
[1744760937962,6.22116297,1588.7,1588.6,0.79]
[1744760938261,6.1,1588.7,1588.6,7.14779206]
[1744760940767,11.893,1589.1,1588.9,6.2934824]
[1744760940935,11.893,1589.1,1588.9,7.0648824]
[1744760941135,11.893,1589.1,1588.9,13.35844256]
[1744760941336,11.893,1589.1,1588.9,7.0648824]
[1744760941535,11.893,1589.1,1588.9,13.35843224]
[1744760941838,11.893,1589.1,1588.9,7.0648824]
[1744760942858,6.1,1589.1,1589.0,6.2932662]
[1744760943174,11.894,1589.1,1589.0,6.2932662]
[1744760943883,18.18698491,1589.1,1588.8,12.5878927]
[1744760944085,24.48007591,1589.1,1588.8,6.29393475]
[1744760944251,11.894,1589.1,1588.8,6.29393475]
[1744760944588,18.18693776,1589.1,1588.8,6.29393475]
[1744760945187,18.18693776,1589.1,1588.8,12.5878699]
[1744760945411,24.48003776,1589.1,1588.8,6.29393475]
[1744760945787,18.18693776,1589.1,1588.8,6.29393475]
[1744760945986,18.18693776,1589.1,1588.8,12.58788761]
[1744760946964,18.18693776,1589.1,1588.9,6.29365886]
[1744760947685,18.18693776,1589.1,1588.8,12.58788761]
[1744760948165,11.894,1589.1,1588.9,6.29359012]
[1744760948886,2.9,1589.0,1588.9,6.29359012]
[1744760949206,2.9,1589.0,1588.9,7.55234261]
[1744760951482,2.9,1589.0,1588.9,6.29359012]
[1744760951867,2.9,1589.0,1588.9,7.10829012]
[1744760952185,6.1,1589.4,1589.3,6.29207827]
[1744760952492,5.793,1589.5,1589.1,7.1143782]
[1744760952784,5.793,1589.5,1589.2,6.29242852]
[1744760952785,12.08440143,1589.5,1589.2,6.29242852]
[1744760953387,12.08440143,1589.5,1589.2,12.58478756]
[1744760953592,5.793,1589.5,1589.3,6.29206762]
[1744760953758,2.9,1589.4,1589.3,12.58404116]
[1744760953958,2.9,1589.4,1589.3,13.84244528]
[1744760954166,2.9,1589.4,1589.3,14.61474528]
[1744760954887,2.9,1589.4,1589.3,17.32863604]
[1744760956063,2.9,1589.4,1589.3,14.61474528]
[1744760957003,2.9,1589.4,1589.3,8.32267766]
[1744760957289,2.9,1589.4,1589.3,7.06427354]
[1744760957459,2.9,1589.4,1589.3,0.7723]
[1744760957660,2.9,1589.4,1589.2,12.58469392]
[1744760957888,2.9,1589.4,1589.3,6.29207827]
[1744760958329,2.9,1589.4,1589.2,6.2922783]
[1744760958827,2.9,1589.4,1589.3,6.29207827]
[1744760961287,2.9,1589.4,1589.1,7.08525665]
[1744760961592,2.9,1589.4,1589.2,6.29246508]
[1744760962031,9.19202254,1589.4,1589.1,7.08524618]
[1744760962217,6.29223767,1589.3,1589.0,6.29314515]
[1744760962398,12.58460792,1589.3,1589.0,6.29314515]
[1744760962594,12.58522736,1589.2,1588.9,7.0948882]
[1744760962798,7.06243683,1589.2,1588.9,12.58712918]
[1744760964826,0.7699,1589.2,1589.0,6.29322882]
[1744760965627,19.47252939,1589.3,1589.0,6.2931504]
[1744760965989,6.2924742,1589.2,1588.8,0.7689]
[1744760966194,6.29376669,1588.9,1588.6,0.8177]
[1744760966394,6.1,1588.9,1588.3,0.8177]
[1744760966622,6.29418229,1588.8,1588.5,6.29509158]
[1744760966806,5.744,1588.7,1588.5,6.29509158]
[1744760967307,5.744,1588.7,1588.4,6.29552542]
[1744760967508,12.03850504,1588.7,1588.4,13.30238672]
[1744760967704,12.6398,1588.7,1588.2,6.29631656]
[1744760967911,12.6398,1588.7,1588.1,0.05]
[1744760967912,6.29558447,1588.5,1588.1,12.70637336]
[1744760968106,6.1,1588.6,1588.1,0.05]
[1744760968333,6.29591328,1588.4,1588.1,6.34680434]
[1744760968535,6.29591328,1588.4,1588.1,12.64352699]
[1744760969239,6.29535145,1588.5,1588.2,6.29610149]
[1744760969546,6.29526014,1588.5,1588.2,12.59240713]
[1744760969707,6.29526014,1588.5,1588.2,6.29610149]
[1744760970031,6.1,1588.6,1588.3,7.11810979]
[1744760970233,12.39506908,1588.6,1588.3,7.11810979]
[1744760970429,24.43513816,1588.6,1588.3,7.11810979]
[1744760970634,24.43508817,1588.6,1588.3,7.11810979]
[1744760970944,11.845,1588.6,1588.5,6.29524708]
[1744760971144,5.745,1588.6,1588.5,6.29524708]
[1744760971547,11.845,1588.9,1588.6,6.29478786]
[1744760971726,6.29416609,1588.8,1588.5,7.12394202]
[1744760972084,6.29416609,1588.8,1588.5,7.12384207]
[1744760972223,6.29416609,1588.8,1588.5,13.41896933]
[1744760972419,0.7834,1588.7,1588.3,0.64412183]
[1744760972624,6.29416609,1588.8,1588.5,12.59026057]
[1744760972955,6.29416609,1588.8,1588.5,12.59026413]
[1744760973164,25.21608367,1588.9,1588.5,12.59026413]
[1744760973313,6.29409028,1588.8,1588.5,12.59026413]
[1744760974212,12.58832178,1588.8,1588.5,6.2951194]
[1744760974413,18.92225428,1588.9,1588.5,12.59032282]
[1744760974614,18.92225428,1588.9,1588.6,12.58953381]
[1744760974842,18.92225428,1588.9,1588.6,6.29470257]
[1744760975651,18.92225428,1588.9,1588.6,12.58943613]
[1744760975862,18.92225428,1588.9,1588.6,6.29470257]
[1744760976270,18.13885428,1588.9,1588.6,12.58943203]
[1744760976451,11.845,1588.9,1588.7,6.2943811]
[1744760976825,11.845,1588.9,1588.6,7.76265784]
[1744760977132,18.13877787,1588.9,1588.6,14.12034758]
[1744760977463,18.13877787,1588.9,1588.6,14.05740612]
[1744760977654,24.43262146,1588.9,1588.6,7.76265784]
[1744760977861,24.43262146,1588.9,1588.6,6.29467141]
[1744760978079,11.845,1588.9,1588.6,6.35761289]
[1744760978227,5.745,1588.9,1588.8,7.0656584]
[1744760978577,62.24447957,1589.2,1588.8,7.0656584]
[1744760978578,12.03788146,1589.1,1588.8,14.69571237]
[1744760978729,5.745,1589.1,1588.9,6.29366193]
[1744760979122,5.745,1589.1,1588.8,14.69547987]
[1744760979349,5.745,1589.1,1588.9,6.29364514]
[1744760979937,5.745,1589.1,1588.8,14.69547131]
[1744760980134,61.47157957,1589.2,1588.9,7.76309108]
[1744760980350,60.925,1589.2,1588.8,0.7716]
[1744760980560,6.29324571,1589.1,1588.8,0.7716]
[1744760980739,12.58649142,1589.1,1588.8,0.7716]
[1744760980937,0.7782,1589.1,1588.6,0.81]
[1744760981138,6.2938219,1588.9,1588.6,0.81]
[1744760981339,6.2938219,1588.9,1588.6,2.21297597]
[1744760981553,12.58770095,1588.9,1588.6,2.15004278]
[1744760981772,6.29415233,1588.8,1588.6,0.81]
[1744760982063,18.33355435,1588.8,1588.6,0.81]
[1744760982564,12.03915233,1588.8,1588.6,0.81]
[1744760982771,18.33342615,1588.8,1588.6,0.81]
[1744760983072,18.33342615,1588.8,1588.6,7.10471914]
[1744760983073,5.745,1588.8,1588.6,7.10471914]
[1744760983431,5.745,1588.8,1588.6,0.81]
[1744760983632,18.33337586,1588.8,1588.6,0.81]
[1744760984037,12.03908218,1588.8,1588.6,0.81]
[1744760984265,18.3334483,1588.8,1588.6,0.81]
[1744760984469,6.29485081,1588.6,1588.5,0.0824]
[1744760986063,13.17915081,1588.6,1588.5,0.0824]
[1744760986237,16.17915081,1588.6,1588.5,0.0824]
[1744760986438,16.72915081,1588.6,1588.5,0.0824]
[1744760988045,16.17915081,1588.6,1588.5,0.0824]
[1744760990391,16.72915081,1588.6,1588.5,0.0824]
[1744760991555,19.44304157,1588.6,1588.5,0.0824]
[1744760996364,22.34304157,1588.6,1588.5,0.0824]
[1744760996711,7.07983621,1588.2,1588.1,0.05]
[1744760996881,18.89783621,1588.2,1588.1,0.05]
[1744760998099,21.61172697,1588.2,1588.1,0.05]
[1744760998283,24.61172697,1588.2,1588.1,0.05]
[1744760998493,25.13672697,1588.2,1588.1,0.05]
[1744760998694,7.05710051,1587.7,1587.4,6.29954503]
[1744760998876,7.05710051,1587.7,1587.4,6.29949934]